{"text_format":"3","workbook":"xlsx","n_sheets":1,"sheets":["Osobný mesačný rozpočet"],"read":"whole","date_system":"1900"}

{"sheet":"Osobný mesačný rozpočet","index":0,"n_rows":64,"n_cols":10,"rows_kept":64,"merged":[[1,1,1,9],[2,1,2,9],[4,1,6,1],[4,2,4,3],[4,6,5,8],[4,9,5,9],[5,2,5,3],[6,2,6,3],[6,6,7,8],[6,9,7,9],[7,1,9,1],[7,2,7,3],[8,2,8,3],[8,6,9,8],[8,9,9,9],[9,2,9,3],[22,6,22,9],[23,1,23,4],[31,6,31,9],[33,1,33,4],[38,6,38,9],[40,1,40,4],[44,6,44,9],[46,1,46,4],[50,6,50,9],[54,1,54,4],[57,6,57,9],[58,6,59,8],[58,9,59,9],[60,6,61,8],[60,9,61,9],[62,6,63,8],[62,9,63,9]]}
[]
[null,"Osobný mesačný rozpočet"]
[]
[]
[null,"PREDPOKLADANÝ MESAČNÝ PRÍJEM","Príjem 1",null,{"v":2500,"d":"2,500 EUR"},null,"PREDPOKLADANÝ ZOSTATOK (Predpokladaný príjem mínus výdavky)",null,null,{"$f":"E7-J59","v":{"v":940,"d":"940 EUR"}}]
[null,null,"Osobitné príjmy",null,{"v":500,"d":"500 EUR"}]
[null,null,"Mesačný príjem spolu",null,{"$f":"SUM(E5:E6)","v":{"v":3000,"d":"3,000 EUR"}},null,"SKUTOČNÝ ZOSTATOK (Skutočný príjem mínus výdavky)",null,null,{"$f":"E10-J61","v":{"v":960,"d":"960 EUR"}}]
[null,"SKUTOČNÝ MESAČNÝ PRÍJEM","Príjem 1",null,{"v":2500,"d":"2,500 EUR"}]
[null,null,"Osobitné príjmy",null,{"v":500,"d":"500 EUR"},null,"ROZDIEL (Skutočné mínus predpokladané)",null,null,{"$f":"J7-J5","v":{"v":20,"d":"20 EUR"}}]
[null,null,"Mesačný príjem spolu",null,{"$f":"SUM(E8:E9)","v":{"v":3000,"d":"3,000 EUR"}}]
[]
[null,"BÝVANIE","Predpokladané náklady","Skutočné náklady","Rozdiel",null,"ZÁBAVA","Predpokladané náklady","Skutočné náklady","Rozdiel"]
[null,"Hypotéka alebo nájomné",{"v":1500,"d":"1,500 EUR"},{"v":1400,"d":"1,400 EUR"},{"$f":"Tabuľka1[[#This Row],[Predpokladané náklady]]-Tabuľka1[[#This Row],[Skutočné náklady]]","v":{"v":100,"d":"100 EUR"}},null,"Video alebo DVD",{"v":0,"d":"0 EUR"},{"v":50,"d":"50 EUR"},{"$f":"Tabuľka2[[#This Row],[Predpokladané náklady]]-Tabuľka2[[#This Row],[Skutočné náklady]]","v":{"v":-50,"d":"-50 EUR"}}]
[null,"Telefón",{"v":60,"d":"60 EUR"},{"v":100,"d":"100 EUR"},{"$f":"Tabuľka1[[#This Row],[Predpokladané náklady]]-Tabuľka1[[#This Row],[Skutočné náklady]]","v":{"v":-40,"d":"-40 EUR"}},null,"CD nosiče",null,null,{"$f":"Tabuľka2[[#This Row],[Predpokladané náklady]]-Tabuľka2[[#This Row],[Skutočné náklady]]","v":{"v":0,"d":"0 EUR"}}]
[null,"Elektrina",{"v":50,"d":"50 EUR"},{"v":60,"d":"60 EUR"},{"$f":"Tabuľka1[[#This Row],[Predpokladané náklady]]-Tabuľka1[[#This Row],[Skutočné náklady]]","v":{"v":-10,"d":"-10 EUR"}},null,"Filmy",null,null,{"$f":"Tabuľka2[[#This Row],[Predpokladané náklady]]-Tabuľka2[[#This Row],[Skutočné náklady]]","v":{"v":0,"d":"0 EUR"}}]
[null,"Plyn",{"v":200,"d":"200 EUR"},{"v":180,"d":"180 EUR"},{"$f":"Tabuľka1[[#This Row],[Predpokladané náklady]]-Tabuľka1[[#This Row],[Skutočné náklady]]","v":{"v":20,"d":"20 EUR"}},null,"Koncerty",null,null,{"$f":"Tabuľka2[[#This Row],[Predpokladané náklady]]-Tabuľka2[[#This Row],[Skutočné náklady]]","v":{"v":0,"d":"0 EUR"}}]
[null,"Vodné a stočné",null,null,{"$f":"Tabuľka1[[#This Row],[Predpokladané náklady]]-Tabuľka1[[#This Row],[Skutočné náklady]]","v":{"v":0,"d":"0 EUR"}},null,"Športové podujatia",null,null,{"$f":"Tabuľka2[[#This Row],[Predpokladané náklady]]-Tabuľka2[[#This Row],[Skutočné náklady]]","v":{"v":0,"d":"0 EUR"}}]
[null,"Káblová televízia",null,null,{"$f":"Tabuľka1[[#This Row],[Predpokladané náklady]]-Tabuľka1[[#This Row],[Skutočné náklady]]","v":{"v":0,"d":"0 EUR"}},null,"Divadlo",null,null,{"$f":"Tabuľka2[[#This Row],[Predpokladané náklady]]-Tabuľka2[[#This Row],[Skutočné náklady]]","v":{"v":0,"d":"0 EUR"}}]
[null,"Odvoz odpadu",null,null,{"$f":"Tabuľka1[[#This Row],[Predpokladané náklady]]-Tabuľka1[[#This Row],[Skutočné náklady]]","v":{"v":0,"d":"0 EUR"}},null,"Iné",null,null,{"$f":"Tabuľka2[[#This Row],[Predpokladané náklady]]-Tabuľka2[[#This Row],[Skutočné náklady]]","v":{"v":0,"d":"0 EUR"}}]
[null,"Údržba alebo opravy",null,null,{"$f":"Tabuľka1[[#This Row],[Predpokladané náklady]]-Tabuľka1[[#This Row],[Skutočné náklady]]","v":{"v":0,"d":"0 EUR"}},null,"Iné",null,null,{"$f":"Tabuľka2[[#This Row],[Predpokladané náklady]]-Tabuľka2[[#This Row],[Skutočné náklady]]","v":{"v":0,"d":"0 EUR"}}]
[null,"Zásoby",null,null,{"$f":"Tabuľka1[[#This Row],[Predpokladané náklady]]-Tabuľka1[[#This Row],[Skutočné náklady]]","v":{"v":0,"d":"0 EUR"}},null,"Iné",null,null,{"$f":"Tabuľka2[[#This Row],[Predpokladané náklady]]-Tabuľka2[[#This Row],[Skutočné náklady]]","v":{"v":0,"d":"0 EUR"}}]
[null,"Iné",null,null,{"$f":"Tabuľka1[[#This Row],[Predpokladané náklady]]-Tabuľka1[[#This Row],[Skutočné náklady]]","v":{"v":0,"d":"0 EUR"}},null,"Celková hodnota",{"$f":"SUBTOTAL(109,Tabuľka2[Predpokladané náklady])","v":{"v":0,"d":"0 EUR"}},{"$f":"SUBTOTAL(109,Tabuľka2[Skutočné náklady])","v":{"v":50,"d":"50 EUR"}},{"$f":"SUBTOTAL(109,Tabuľka2[Rozdiel])","v":{"v":-50,"d":"-50 EUR"}}]
[null,"Celková hodnota",{"$f":"SUBTOTAL(109,Tabuľka1[Predpokladané náklady])","v":{"v":1810,"d":"1,810 EUR"}},{"$f":"SUBTOTAL(109,Tabuľka1[Skutočné náklady])","v":{"v":1740,"d":"1,740 EUR"}},{"$f":"SUBTOTAL(109,Tabuľka1[Rozdiel])","v":{"v":70,"d":"70 EUR"}}]
[{"$nulls":6},"PÔŽIČKY","Predpokladané náklady","Skutočné náklady","Rozdiel"]
[null,"DOPRAVA","Predpokladané náklady","Skutočné náklady","Rozdiel",null,"Osobné",null,null,{"$f":"Tabuľka8[[#This Row],[Predpokladané náklady]]-Tabuľka8[[#This Row],[Skutočné náklady]]","v":{"v":0,"d":"0 EUR"}}]
[null,"Platba za vozidlo",{"v":250,"d":"250 EUR"},{"v":250,"d":"250 EUR"},{"$f":"Tabuľka3[[#This Row],[Predpokladané náklady]]-Tabuľka3[[#This Row],[Skutočné náklady]]","v":{"v":0,"d":"0 EUR"}},null,"Študentské",null,null,{"$f":"Tabuľka8[[#This Row],[Predpokladané náklady]]-Tabuľka8[[#This Row],[Skutočné náklady]]","v":{"v":0,"d":"0 EUR"}}]
[null,"Cestovné za autobus alebo taxi",null,null,{"$f":"Tabuľka3[[#This Row],[Predpokladané náklady]]-Tabuľka3[[#This Row],[Skutočné náklady]]","v":{"v":0,"d":"0 EUR"}},null,"Kreditná karta",null,null,{"$f":"Tabuľka8[[#This Row],[Predpokladané náklady]]-Tabuľka8[[#This Row],[Skutočné náklady]]","v":{"v":0,"d":"0 EUR"}}]
[null,"Poistenie",null,null,{"$f":"Tabuľka3[[#This Row],[Predpokladané náklady]]-Tabuľka3[[#This Row],[Skutočné náklady]]","v":{"v":0,"d":"0 EUR"}},null,"Kreditná karta",null,null,{"$f":"Tabuľka8[[#This Row],[Predpokladané náklady]]-Tabuľka8[[#This Row],[Skutočné náklady]]","v":{"v":0,"d":"0 EUR"}}]
[null,"Úradné poplatky",null,null,{"$f":"Tabuľka3[[#This Row],[Predpokladané náklady]]-Tabuľka3[[#This Row],[Skutočné náklady]]","v":{"v":0,"d":"0 EUR"}},null,"Kreditná karta",null,null,{"$f":"Tabuľka8[[#This Row],[Predpokladané náklady]]-Tabuľka8[[#This Row],[Skutočné náklady]]","v":{"v":0,"d":"0 EUR"}}]
[null,"Pohonné hmoty",null,null,{"$f":"Tabuľka3[[#This Row],[Predpokladané náklady]]-Tabuľka3[[#This Row],[Skutočné náklady]]","v":{"v":0,"d":"0 EUR"}},null,"Iné",null,null,{"$f":"Tabuľka8[[#This Row],[Predpokladané náklady]]-Tabuľka8[[#This Row],[Skutočné náklady]]","v":{"v":0,"d":"0 EUR"}}]
[null,"Údržba",null,null,{"$f":"Tabuľka3[[#This Row],[Predpokladané náklady]]-Tabuľka3[[#This Row],[Skutočné náklady]]","v":{"v":0,"d":"0 EUR"}},null,"Celková hodnota",{"$f":"SUBTOTAL(109,Tabuľka8[Predpokladané náklady])","v":{"v":0,"d":"0 EUR"}},{"$f":"SUBTOTAL(109,Tabuľka8[Skutočné náklady])","v":{"v":0,"d":"0 EUR"}},{"$f":"SUBTOTAL(109,Tabuľka8[Rozdiel])","v":{"v":0,"d":"0 EUR"}}]
[null,"Iné",null,null,{"$f":"Tabuľka3[[#This Row],[Predpokladané náklady]]-Tabuľka3[[#This Row],[Skutočné náklady]]","v":{"v":0,"d":"0 EUR"}}]
[null,"Celková hodnota",{"$f":"SUBTOTAL(109,Tabuľka3[Predpokladané náklady])","v":{"v":250,"d":"250 EUR"}},{"$f":"SUBTOTAL(109,Tabuľka3[Skutočné náklady])","v":{"v":250,"d":"250 EUR"}},{"$f":"SUBTOTAL(109,Tabuľka3[Rozdiel])","v":{"v":0,"d":"0 EUR"}},null,"DANE","Predpokladané náklady","Skutočné náklady","Rozdiel"]
[{"$nulls":6},"Zahraničné",null,null,{"$f":"Tabuľka9[[#This Row],[Predpokladané náklady]]-Tabuľka9[[#This Row],[Skutočné náklady]]","v":{"v":0,"d":"0 EUR"}}]
[null,"POISTENIE","Predpokladané náklady","Skutočné náklady","Rozdiel",null,"Štátne",null,null,{"$f":"Tabuľka9[[#This Row],[Predpokladané náklady]]-Tabuľka9[[#This Row],[Skutočné náklady]]","v":{"v":0,"d":"0 EUR"}}]
[null,"Domácnosť",null,null,{"$f":"Tabuľka4[[#This Row],[Predpokladané náklady]]-Tabuľka4[[#This Row],[Skutočné náklady]]","v":{"v":0,"d":"0 EUR"}},null,"Miestne",null,null,{"$f":"Tabuľka9[[#This Row],[Predpokladané náklady]]-Tabuľka9[[#This Row],[Skutočné náklady]]","v":{"v":0,"d":"0 EUR"}}]
[null,"Zdravotné",null,null,{"$f":"Tabuľka4[[#This Row],[Predpokladané náklady]]-Tabuľka4[[#This Row],[Skutočné náklady]]","v":{"v":0,"d":"0 EUR"}},null,"Iné",null,null,{"$f":"Tabuľka9[[#This Row],[Predpokladané náklady]]-Tabuľka9[[#This Row],[Skutočné náklady]]","v":{"v":0,"d":"0 EUR"}}]
[null,"Život",null,null,{"$f":"Tabuľka4[[#This Row],[Predpokladané náklady]]-Tabuľka4[[#This Row],[Skutočné náklady]]","v":{"v":0,"d":"0 EUR"}},null,"Celková hodnota",{"$f":"SUBTOTAL(109,Tabuľka9[Predpokladané náklady])","v":{"v":0,"d":"0 EUR"}},{"$f":"SUBTOTAL(109,Tabuľka9[Skutočné náklady])","v":{"v":0,"d":"0 EUR"}},{"$f":"SUBTOTAL(109,Tabuľka9[Rozdiel])","v":{"v":0,"d":"0 EUR"}}]
[null,"Iné",null,null,{"$f":"Tabuľka4[[#This Row],[Predpokladané náklady]]-Tabuľka4[[#This Row],[Skutočné náklady]]","v":{"v":0,"d":"0 EUR"}}]
[null,"Celková hodnota",{"$f":"SUBTOTAL(109,Tabuľka4[Predpokladané náklady])","v":{"v":0,"d":"0 EUR"}},{"$f":"SUBTOTAL(109,Tabuľka4[Skutočné náklady])","v":{"v":0,"d":"0 EUR"}},{"$f":"SUBTOTAL(109,Tabuľka4[Rozdiel])","v":{"v":0,"d":"0 EUR"}},null,"ÚSPORY ALEBO INVESTÍCIE","Predpokladané náklady","Skutočné náklady","Rozdiel"]
[{"$nulls":6},"Dôchodkový účet",null,null,{"$f":"Tabuľka10[[#This Row],[Predpokladané náklady]]-Tabuľka10[[#This Row],[Skutočné náklady]]","v":{"v":0,"d":"0 EUR"}}]
[null,"STRAVA","Predpokladané náklady","Skutočné náklady","Rozdiel",null,"Investičný účet",null,null,{"$f":"Tabuľka10[[#This Row],[Predpokladané náklady]]-Tabuľka10[[#This Row],[Skutočné náklady]]","v":{"v":0,"d":"0 EUR"}}]
[null,"Potraviny",null,null,{"$f":"Tabuľka5[[#This Row],[Predpokladané náklady]]-Tabuľka5[[#This Row],[Skutočné náklady]]","v":{"v":0,"d":"0 EUR"}},null,"Iné",null,null,{"$f":"Tabuľka10[[#This Row],[Predpokladané náklady]]-Tabuľka10[[#This Row],[Skutočné náklady]]","v":{"v":0,"d":"0 EUR"}}]
[null,"Reštaurácie",null,null,{"$f":"Tabuľka5[[#This Row],[Predpokladané náklady]]-Tabuľka5[[#This Row],[Skutočné náklady]]","v":{"v":0,"d":"0 EUR"}},null,"Celková hodnota",{"$f":"SUBTOTAL(109,Tabuľka10[Predpokladané náklady])","v":{"v":0,"d":"0 EUR"}},{"$f":"SUBTOTAL(109,Tabuľka10[Skutočné náklady])","v":{"v":0,"d":"0 EUR"}},{"$f":"SUBTOTAL(109,Tabuľka10[Rozdiel])","v":{"v":0,"d":"0 EUR"}}]
[null,"Iné",null,null,{"$f":"Tabuľka5[[#This Row],[Predpokladané náklady]]-Tabuľka5[[#This Row],[Skutočné náklady]]","v":{"v":0,"d":"0 EUR"}}]
[null,"Celková hodnota",{"$f":"SUBTOTAL(109,Tabuľka5[Predpokladané náklady])","v":{"v":0,"d":"0 EUR"}},{"$f":"SUBTOTAL(109,Tabuľka5[Skutočné náklady])","v":{"v":0,"d":"0 EUR"}},{"$f":"SUBTOTAL(109,Tabuľka5[Rozdiel])","v":{"v":0,"d":"0 EUR"}},null,"DARY A PRÍSPEVKY","Predpokladané náklady","Skutočné náklady","Rozdiel"]
[{"$nulls":6},"Charita 1",null,null,{"$f":"Tabuľka11[[#This Row],[Predpokladané náklady]]-Tabuľka11[[#This Row],[Skutočné náklady]]","v":{"v":0,"d":"0 EUR"}}]
[null,"DOMÁCE ZVIERATÁ","Predpokladané náklady","Skutočné náklady","Rozdiel",null,"Charita 2",null,null,{"$f":"Tabuľka11[[#This Row],[Predpokladané náklady]]-Tabuľka11[[#This Row],[Skutočné náklady]]","v":{"v":0,"d":"0 EUR"}}]
[null,"Strava",null,null,{"$f":"Tabuľka6[[#This Row],[Predpokladané náklady]]-Tabuľka6[[#This Row],[Skutočné náklady]]","v":{"v":0,"d":"0 EUR"}},null,"Charita 3",null,null,{"$f":"Tabuľka11[[#This Row],[Predpokladané náklady]]-Tabuľka11[[#This Row],[Skutočné náklady]]","v":{"v":0,"d":"0 EUR"}}]
[null,"Zdravie",null,null,{"$f":"Tabuľka6[[#This Row],[Predpokladané náklady]]-Tabuľka6[[#This Row],[Skutočné náklady]]","v":{"v":0,"d":"0 EUR"}},null,"Celková hodnota",{"$f":"SUBTOTAL(109,Tabuľka11[Predpokladané náklady])","v":{"v":0,"d":"0 EUR"}},{"$f":"SUBTOTAL(109,Tabuľka11[Skutočné náklady])","v":{"v":0,"d":"0 EUR"}},{"$f":"SUBTOTAL(109,Tabuľka11[Rozdiel])","v":{"v":0,"d":"0 EUR"}}]
[null,"Starostlivosť o výzor",null,null,{"$f":"Tabuľka6[[#This Row],[Predpokladané náklady]]-Tabuľka6[[#This Row],[Skutočné náklady]]","v":{"v":0,"d":"0 EUR"}}]
[null,"Hračky",null,null,{"$f":"Tabuľka6[[#This Row],[Predpokladané náklady]]-Tabuľka6[[#This Row],[Skutočné náklady]]","v":{"v":0,"d":"0 EUR"}},null,"PRÁVNE POPLATKY","Predpokladané náklady","Skutočné náklady","Rozdiel"]
[null,"Iné",null,null,{"$f":"Tabuľka6[[#This Row],[Predpokladané náklady]]-Tabuľka6[[#This Row],[Skutočné náklady]]","v":{"v":0,"d":"0 EUR"}},null,"Právnik",null,null,{"$f":"Tabuľka12[[#This Row],[Predpokladané náklady]]-Tabuľka12[[#This Row],[Skutočné náklady]]","v":{"v":0,"d":"0 EUR"}}]
[null,"Celková hodnota",{"$f":"SUBTOTAL(109,Tabuľka6[Predpokladané náklady])","v":{"v":0,"d":"0.00 EUR"}},{"$f":"SUBTOTAL(109,Tabuľka6[Skutočné náklady])","v":{"v":0,"d":"0.00 EUR"}},{"$f":"SUBTOTAL(109,Tabuľka6[Rozdiel])","v":{"v":0,"d":"0.00 EUR"}},null,"Výživné",null,null,{"$f":"Tabuľka12[[#This Row],[Predpokladané náklady]]-Tabuľka12[[#This Row],[Skutočné náklady]]","v":{"v":0,"d":"0 EUR"}}]
[{"$nulls":6},"Záložné právo alebo rozsudok",null,null,{"$f":"Tabuľka12[[#This Row],[Predpokladané náklady]]-Tabuľka12[[#This Row],[Skutočné náklady]]","v":{"v":0,"d":"0 EUR"}}]
[null,"OSOBNÁ STAROSTLIVOSŤ","Predpokladané náklady","Skutočné náklady","Rozdiel",null,"Iné",null,null,{"$f":"Tabuľka12[[#This Row],[Predpokladané náklady]]-Tabuľka12[[#This Row],[Skutočné náklady]]","v":{"v":0,"d":"0 EUR"}}]
[null,"Zdravie",null,null,{"$f":"Tabuľka7[[#This Row],[Predpokladané náklady]]-Tabuľka7[[#This Row],[Skutočné náklady]]","v":{"v":0,"d":"0 EUR"}},null,"Celková hodnota",{"$f":"SUBTOTAL(109,Tabuľka12[Predpokladané náklady])","v":{"v":0,"d":"0.00 EUR"}},{"$f":"SUBTOTAL(109,Tabuľka12[Skutočné náklady])","v":{"v":0,"d":"0.00 EUR"}},{"$f":"SUBTOTAL(109,Tabuľka12[Rozdiel])","v":{"v":0,"d":"0.00 EUR"}}]
[null,"Kaderníctvo a manikúra",null,null,{"$f":"Tabuľka7[[#This Row],[Predpokladané náklady]]-Tabuľka7[[#This Row],[Skutočné náklady]]","v":{"v":0,"d":"0 EUR"}}]
[null,"Oblečenie",null,null,{"$f":"Tabuľka7[[#This Row],[Predpokladané náklady]]-Tabuľka7[[#This Row],[Skutočné náklady]]","v":{"v":0,"d":"0 EUR"}},null,"PREDPOKLADANÉ NÁKLADY SPOLU",null,null,{"$f":"SUM(C23,C33,C40,C46,C54,C64,H22,H31,H38,H44,H50,H57)","v":{"v":2060,"d":"2,060 EUR"}}]
[null,"Čistiareň",null,null,{"$f":"Tabuľka7[[#This Row],[Predpokladané náklady]]-Tabuľka7[[#This Row],[Skutočné náklady]]","v":{"v":0,"d":"0 EUR"}}]
[null,"Zdravotný klub",null,null,{"$f":"Tabuľka7[[#This Row],[Predpokladané náklady]]-Tabuľka7[[#This Row],[Skutočné náklady]]","v":{"v":0,"d":"0 EUR"}},null,"SKUTOČNÉ NÁKLADY SPOLU",null,null,{"$f":"SUM(D23,D33,D40,D46,D54,D64,I22,I31,I38,I44,I50,I57)","v":{"v":2040,"d":"2,040 EUR"}}]
[null,"Príspevky alebo poplatky organizáciám",null,null,{"$f":"Tabuľka7[[#This Row],[Predpokladané náklady]]-Tabuľka7[[#This Row],[Skutočné náklady]]","v":{"v":0,"d":"0 EUR"}}]
[null,"Iné",null,null,{"$f":"Tabuľka7[[#This Row],[Predpokladané náklady]]-Tabuľka7[[#This Row],[Skutočné náklady]]","v":{"v":0,"d":"0 EUR"}},null,"ROZDIEL SPOLU",null,null,{"$f":"SUM(E23,E33,E40,E46,E54,E64,J22,J31,J38,J44,J50,J57)","v":{"v":20,"d":"20 EUR"}}]
[null,"Celková hodnota",{"$f":"SUBTOTAL(109,Tabuľka7[Predpokladané náklady])","v":{"v":0,"d":"0 EUR"}},{"$f":"SUBTOTAL(109,Tabuľka7[Skutočné náklady])","v":{"v":0,"d":"0 EUR"}},{"$f":"SUBTOTAL(109,Tabuľka7[Rozdiel])","v":{"v":0,"d":"0 EUR"}}]